[Event "Early-Titled-Tuesday-Blitz-January-30-2024"]
[Site "Chess.com"]
[Date "2024.01.30"]
[Round "1"]
[White "mitrabhaa"]
[Black "sjoerd893"]
[Result "1-0"]
[WhiteElo "2905"]
[BlackElo "2502"]
[TimeControl "180+1"]
[EndTime "8:06:30 PST"]
[Termination "mitrabhaa won by checkmate"]

1. d4 {[%clk 0:02:48.2]} 1... d5 {[%clk 0:02:59.1]} 2. Nf3 {[%clk 0:02:48.9]}
2... Nf6 {[%clk 0:02:59.1]} 3. Bf4 {[%clk 0:02:49.6]} 3... c5 {[%clk 0:02:55.3]}
4. e3 {[%clk 0:02:49.8]} 4... Nc6 {[%clk 0:02:54.1]} 5. c3 {[%clk 0:02:50.1]}
5... Qb6 {[%clk 0:02:51.1]} 6. Qc2 {[%clk 0:02:47.1]} 6... Bg4 {[%clk
0:02:26.5]} 7. Nbd2 {[%clk 0:02:38.5]} 7... e6 {[%clk 0:02:24.8]} 8. Qb3 {[%clk
0:02:29.3]} 8... c4 {[%clk 0:02:22]} 9. Qc2 {[%clk 0:02:28]} 9... Bf5 {[%clk
0:02:20.2]} 10. Qc1 {[%clk 0:02:28.1]} 10... h6 {[%clk 0:02:20.4]} 11. Be2
{[%clk 0:02:27.3]} 11... Nh5 {[%clk 0:02:18.6]} 12. Be5 {[%clk 0:02:25.8]} 12...
Nxe5 {[%clk 0:02:12.2]} 13. dxe5 {[%clk 0:02:24.2]} 13... g5 {[%clk 0:02:09.7]}
14. b3 {[%clk 0:02:17.2]} 14... cxb3 {[%clk 0:02:04.5]} 15. axb3 {[%clk
0:02:15.7]} 15... a6 {[%clk 0:01:22.9]} 16. Nd4 {[%clk 0:02:05.1]} 16... Bg6
{[%clk 0:01:21.7]} 17. Bb5+ {[%clk 0:02:05]} 17... Kd8 {[%clk 0:01:14.9]} 18.
Be2 {[%clk 0:02:05.3]} 18... Rc8 {[%clk 0:01:09.9]} 19. O-O {[%clk 0:02:04.3]}
19... Ng7 {[%clk 0:01:05.9]} 20. c4 {[%clk 0:02:04.2]} 20... Nf5 {[%clk
0:01:04]} 21. Nxf5 {[%clk 0:02:02.1]} 21... Bxf5 {[%clk 0:01:04.9]} 22. Nf3
{[%clk 0:02:01.9]} 22... Bb4 {[%clk 0:00:59.9]} 23. Qd1 {[%clk 0:01:58.9]} 23...
Ke7 {[%clk 0:00:49.4]} 24. cxd5 {[%clk 0:01:58.1]} 24... exd5 {[%clk 0:00:50.3]}
25. Nd4 {[%clk 0:01:56.7]} 25... Be6 {[%clk 0:00:47.3]} 26. Bg4 {[%clk
0:01:56.7]} 26... Bc3 {[%clk 0:00:43.4]} 27. Ra4 {[%clk 0:01:56.2]} 27... Bxd4
{[%clk 0:00:39.8]} 28. Rxd4 {[%clk 0:01:53.9]} 28... Rhd8 {[%clk 0:00:34.4]} 29.
Bxe6 {[%clk 0:01:53.7]} 29... Qxe6 {[%clk 0:00:28.4]} 30. f4 {[%clk 0:01:53.7]}
30... Rd7 {[%clk 0:00:21.5]} 31. Kh1 {[%clk 0:01:51.8]} 31... Rcd8 {[%clk
0:00:21.2]} 32. h3 {[%clk 0:01:52]} 32... b5 {[%clk 0:00:17.4]} 33. Qf3 {[%clk
0:01:50.4]} 33... gxf4 {[%clk 0:00:14.7]} 34. exf4 {[%clk 0:01:50.4]} 34... Qf5
{[%clk 0:00:15]} 35. g4 {[%clk 0:01:49.6]} 35... Qc2 {[%clk 0:00:14.5]} 36. Rf2
{[%clk 0:01:50]} 36... Qb1+ {[%clk 0:00:14]} 37. Kg2 {[%clk 0:01:49.4]} 37... a5
{[%clk 0:00:14.2]} 38. f5 {[%clk 0:01:49.4]} 38... Kf8 {[%clk 0:00:14.1]} 39.
Qf4 {[%clk 0:01:49.2]} 39... Kg7 {[%clk 0:00:14]} 40. e6 {[%clk 0:01:43]} 40...
Rb7 {[%clk 0:00:13.4]} 41. f6+ {[%clk 0:01:41.6]} 41... Kh7 {[%clk 0:00:13.3]}
42. e7 {[%clk 0:01:42.1]} 42... Re8 {[%clk 0:00:13.6]} 43. Rxd5 {[%clk
0:01:42.2]} 43... Qxb3 {[%clk 0:00:10.8]} 44. Rh5 {[%clk 0:01:41.7]} 44... Qd3
{[%clk 0:00:04.1]} 45. Qxh6+ {[%clk 0:01:40.1]} 45... Kg8 {[%clk 0:00:04.7]} 46.
Qg7# {[%clk 0:01:40.8]} 1-0

[Event "Early-Titled-Tuesday-Blitz-January-30-2024"]
[Site "Chess.com"]
[Date "2024.01.30"]
[Round "1"]
[White "MetiForce"]
[Black "Talent-OF-Slovenia"]
[Result "1-0"]
[WhiteElo "2853"]
[BlackElo "2473"]
[TimeControl "180+1"]
[EndTime "8:06:34 PST"]
[Termination "MetiForce won by resignation"]

1. Nf3 {[%clk 0:02:53.1]} 1... d5 {[%clk 0:02:59.5]} 2. e3 {[%clk 0:02:53.4]}
2... c6 {[%clk 0:02:58.5]} 3. d4 {[%clk 0:02:53.6]} 3... Nf6 {[%clk 0:02:57.6]}
4. Bd3 {[%clk 0:02:54.3]} 4... g6 {[%clk 0:02:56.3]} 5. O-O {[%clk 0:02:54.4]}
5... Bg7 {[%clk 0:02:56.4]} 6. Nbd2 {[%clk 0:02:54.5]} 6... O-O {[%clk 0:02:57]}
7. b3 {[%clk 0:02:55.1]} 7... Nbd7 {[%clk 0:02:50.3]} 8. Bb2 {[%clk 0:02:55.1]}
8... Re8 {[%clk 0:02:50.3]} 9. Ne5 {[%clk 0:02:55.5]} 9... Qc7 {[%clk
0:02:50.5]} 10. f4 {[%clk 0:02:55.6]} 10... a5 {[%clk 0:02:42.6]} 11. Qf3 {[%clk
0:02:55.1]} 11... a4 {[%clk 0:02:42.3]} 12. h4 {[%clk 0:02:52.6]} 12... a3
{[%clk 0:02:42.3]} 13. Bc3 {[%clk 0:02:49.3]} 13... b5 {[%clk 0:02:32.8]} 14.
Rac1 {[%clk 0:02:47.2]} 14... Qd6 {[%clk 0:02:30.3]} 15. Nb1 {[%clk 0:02:44.9]}
15... b4 {[%clk 0:02:29.4]} 16. Be1 {[%clk 0:02:45.2]} 16... Nb6 {[%clk
0:02:20.5]} 17. g4 {[%clk 0:02:38.4]} 17... h5 {[%clk 0:02:10.1]} 18. f5 {[%clk
0:02:25.2]} 18... hxg4 {[%clk 0:02:01.9]} 19. Nxg4 {[%clk 0:02:23.9]} 19... Nxg4
{[%clk 0:02:01.8]} 20. Qxg4 {[%clk 0:02:24.8]} 20... e5 {[%clk 0:02:01.9]} 21.
fxe6 {[%clk 0:01:47.6]} 21... Bxe6 {[%clk 0:01:57.3]} 22. Qg3 {[%clk 0:01:47.7]}
22... Qe7 {[%clk 0:01:54.4]} 23. Nd2 {[%clk 0:01:46.6]} 23... c5 {[%clk
0:01:43.9]} 24. dxc5 {[%clk 0:01:36.6]} 24... Qxc5 {[%clk 0:01:44.8]} 25. Bf2
{[%clk 0:01:36.9]} 25... Qc3 {[%clk 0:01:32.1]} 26. Nf3 {[%clk 0:01:36.9]} 26...
Rac8 {[%clk 0:01:27.5]} 27. Nd4 {[%clk 0:01:36.5]} 27... Qb2 {[%clk 0:01:12.4]}
28. Ra1 {[%clk 0:01:22.1]} 28... Qc3 {[%clk 0:01:08.1]} 29. Kh1 {[%clk
0:01:20.4]} 29... Bxd4 {[%clk 0:00:51.3]} 30. exd4 {[%clk 0:01:20.2]} 30... Bf5
{[%clk 0:00:51.7]} 31. h5 {[%clk 0:01:19.4]} 31... Bxd3 {[%clk 0:00:49.6]} 32.
cxd3 {[%clk 0:01:20.3]} 32... Re6 {[%clk 0:00:47.2]} 33. Rae1 {[%clk 0:01:08.8]}
33... Rce8 {[%clk 0:00:45.4]} 34. hxg6 {[%clk 0:01:05.3]} 34... fxg6 {[%clk
0:00:39.9]} 35. Qg4 {[%clk 0:00:58.8]} 35... Rxe1 {[%clk 0:00:31.4]} 36. Qxg6+
{[%clk 0:00:58.5]} 36... Kh8 {[%clk 0:00:31.6]} 37. Bxe1 {[%clk 0:00:56.4]}
37... Rxe1 {[%clk 0:00:22.9]} 38. Qh5+ {[%clk 0:00:56.3]} 38... Kg8 {[%clk
0:00:23]} 39. Qg4+ {[%clk 0:00:56.6]} 39... Kh8 {[%clk 0:00:23.5]} 40. Qh4+
{[%clk 0:00:57.1]} 40... Kg8 {[%clk 0:00:24]} 41. Rxe1 {[%clk 0:00:57.6]} 41...
Qxd4 {[%clk 0:00:24.6]} 42. Qxd4 {[%clk 0:00:57.7]} 1-0

[Event "Early-Titled-Tuesday-Blitz-January-30-2024"]
[Site "Chess.com"]
[Date "2024.01.30"]
[Round "1"]
[White "Veleamater"]
[Black "Gennady_Kozlov"]
[Result "1-0"]
[WhiteElo "2326"]
[BlackElo "2622"]
[TimeControl "180+1"]
[EndTime "8:06:34 PST"]
[Termination "Veleamater won by resignation"]

1. g3 {[%clk 0:03:00.9]} 1... d5 {[%clk 0:02:59.3]} 2. Bg2 {[%clk 0:03:00.5]}
2... c6 {[%clk 0:03:00.2]} 3. d3 {[%clk 0:03:00.1]} 3... Bf5 {[%clk 0:02:59.8]}
4. Nf3 {[%clk 0:02:59.6]} 4... h6 {[%clk 0:02:59]} 5. O-O {[%clk 0:02:59.3]}
5... Nf6 {[%clk 0:02:58.4]} 6. Nc3 {[%clk 0:02:59]} 6... e6 {[%clk 0:02:58]} 7.
h3 {[%clk 0:02:59.3]} 7... Be7 {[%clk 0:02:57.8]} 8. Nd4 {[%clk 0:02:58.9]} 8...
Bh7 {[%clk 0:02:57.7]} 9. e4 {[%clk 0:02:58.2]} 9... dxe4 {[%clk 0:02:56.8]} 10.
dxe4 {[%clk 0:02:58.1]} 10... O-O {[%clk 0:02:57.3]} 11. Be3 {[%clk 0:02:57]}
11... Nbd7 {[%clk 0:02:56.4]} 12. Nb3 {[%clk 0:02:56.1]} 12... Nb6 {[%clk
0:02:55.8]} 13. Qe2 {[%clk 0:02:55.4]} 13... Qc7 {[%clk 0:02:54.3]} 14. f4
{[%clk 0:02:53]} 14... Rfd8 {[%clk 0:02:52.9]} 15. a3 {[%clk 0:02:52.2]} 15...
c5 {[%clk 0:02:49.1]} 16. g4 {[%clk 0:02:51.1]} 16... c4 {[%clk 0:02:46.8]} 17.
Nd2 {[%clk 0:02:50.6]} 17... Bc5 {[%clk 0:02:46.2]} 18. Kh1 {[%clk 0:02:50]}
18... Bxe3 {[%clk 0:02:44.1]} 19. Qxe3 {[%clk 0:02:49.3]} 19... Rd7 {[%clk
0:02:42.3]} 20. Rf2 {[%clk 0:02:47.4]} 20... Rad8 {[%clk 0:02:41.5]} 21. Nf3
{[%clk 0:02:46.9]} 21... a6 {[%clk 0:02:29.6]} 22. Rg1 {[%clk 0:02:45.7]} 22...
Nc8 {[%clk 0:02:28.6]} 23. Ne5 {[%clk 0:02:28.8]} 23... Re7 {[%clk 0:02:25.1]}
24. Qg3 {[%clk 0:02:00.5]} 24... Nd6 {[%clk 0:02:20.9]} 25. Re1 {[%clk
0:01:58.7]} 25... h5 {[%clk 0:02:16.3]} 26. g5 {[%clk 0:01:57.9]} 26... Nfe8
{[%clk 0:02:11.9]} 27. Qh4 {[%clk 0:01:57.4]} 27... g6 {[%clk 0:02:08.9]} 28.
Bf3 {[%clk 0:01:51.7]} 28... Ng7 {[%clk 0:02:07.8]} 29. Rfe2 {[%clk 0:01:47.3]}
29... b5 {[%clk 0:02:04]} 30. Qf2 {[%clk 0:01:46.3]} 30... a5 {[%clk 0:02:02.4]}
31. Nd1 {[%clk 0:01:42.2]} 31... b4 {[%clk 0:02:01.6]} 32. axb4 {[%clk
0:01:41.3]} 32... axb4 {[%clk 0:02:01.2]} 33. Ne3 {[%clk 0:01:41.3]} 33... Kf8
{[%clk 0:01:54.3]} 34. b3 {[%clk 0:01:41.4]} 34... cxb3 {[%clk 0:01:53.3]} 35.
cxb3 {[%clk 0:01:41.2]} 35... Nb5 {[%clk 0:01:53.8]} 36. N3c4 {[%clk 0:01:39.7]}
36... Nc3 {[%clk 0:01:53.6]} 37. Rd2 {[%clk 0:01:33.6]} 37... Ne8 {[%clk
0:01:52.5]} 38. Rd4 {[%clk 0:01:27.8]} 38... f6 {[%clk 0:01:47.1]} 39. gxf6
{[%clk 0:01:25.7]} 39... Nxf6 {[%clk 0:01:48]} 40. Bg2 {[%clk 0:01:09.9]} 40...
Ree8 {[%clk 0:01:29.3]} 41. Rxd8 {[%clk 0:01:08.3]} 41... Rxd8 {[%clk
0:01:28.5]} 42. f5 {[%clk 0:01:08.4]} 42... exf5 {[%clk 0:01:22.2]} 43. exf5
{[%clk 0:01:06.6]} 43... gxf5 {[%clk 0:01:23.1]} 44. Qh4 {[%clk 0:01:05.6]}
44... Qg7 {[%clk 0:01:20.6]} 45. Rg1 {[%clk 0:01:04.6]} 45... Bg8 {[%clk
0:01:10.9]} 46. Bd5 {[%clk 0:00:56.9]} 46... Bxd5+ {[%clk 0:01:09.9]} 47. Kh2
{[%clk 0:00:56.4]} 47... Qg6 {[%clk 0:00:38]} 48. Rxg6 {[%clk 0:00:52.5]} 1-0

[Event "Early-Titled-Tuesday-Blitz-January-30-2024"]
[Site "Chess.com"]
[Date "2024.01.30"]
[Round "1"]
[White "TERMINATOR_PC"]
[Black "SuanFernandes"]
[Result "0-1"]
[WhiteElo "2628"]
[BlackElo "2336"]
[TimeControl "180+1"]
[EndTime "8:06:39 PST"]
[Termination "SuanFernandes won by resignation"]

1. e4 {[%clk 0:03:00.9]} 1... c6 {[%clk 0:03:00]} 2. d4 {[%clk 0:02:56.1]} 2...
d5 {[%clk 0:03:00.7]} 3. e5 {[%clk 0:02:52.1]} 3... Bf5 {[%clk 0:03:00.6]} 4.
Nf3 {[%clk 0:02:51.5]} 4... e6 {[%clk 0:03:00.9]} 5. Be2 {[%clk 0:02:50.5]} 5...
Ne7 {[%clk 0:03:01.3]} 6. O-O {[%clk 0:02:50.1]} 6... c5 {[%clk 0:03:01.7]} 7.
Be3 {[%clk 0:02:48.5]} 7... Nec6 {[%clk 0:03:00.9]} 8. c4 {[%clk 0:02:44.8]}
8... cxd4 {[%clk 0:02:54.6]} 9. Bxd4 {[%clk 0:02:44.6]} 9... dxc4 {[%clk
0:02:47.6]} 10. Nc3 {[%clk 0:02:43.6]} 10... Nd7 {[%clk 0:02:38.9]} 11. Bxc4
{[%clk 0:02:39.5]} 11... a6 {[%clk 0:02:34.9]} 12. Rc1 {[%clk 0:02:33.7]} 12...
Be7 {[%clk 0:02:34.1]} 13. Re1 {[%clk 0:02:31.6]} 13... O-O {[%clk 0:02:33.5]}
14. h3 {[%clk 0:02:30]} 14... h6 {[%clk 0:02:32.2]} 15. Bf1 {[%clk 0:02:26.2]}
15... Nxd4 {[%clk 0:02:19.7]} 16. Nxd4 {[%clk 0:02:27.1]} 16... Bh7 {[%clk
0:02:17.8]} 17. Bd3 {[%clk 0:02:24.6]} 17... Bxd3 {[%clk 0:01:54.9]} 18. Qxd3
{[%clk 0:02:25.5]} 18... Nb6 {[%clk 0:01:54.1]} 19. Rcd1 {[%clk 0:02:20.9]}
19... Rc8 {[%clk 0:01:48.1]} 20. a3 {[%clk 0:02:20.9]} 20... Nc4 {[%clk
0:01:46.4]} 21. Qe2 {[%clk 0:02:20.9]} 21... Qb6 {[%clk 0:01:43.2]} 22. Na4
{[%clk 0:02:16.7]} 22... Qa5 {[%clk 0:01:41]} 23. Nc3 {[%clk 0:02:16.2]} 23...
Qb6 {[%clk 0:01:35.4]} 24. Ne4 {[%clk 0:02:09.3]} 24... Qxb2 {[%clk 0:01:25.5]}
25. Qg4 {[%clk 0:02:09.5]} 25... Rfd8 {[%clk 0:01:11.9]} 26. Nf6+ {[%clk
0:02:07.2]} 26... Kh8 {[%clk 0:00:55.9]} 27. Nxe6 {[%clk 0:01:40.5]} 27... fxe6
{[%clk 0:00:49.1]} 28. Rxd8+ {[%clk 0:01:39.9]} 28... Rxd8 {[%clk 0:00:46.4]}
29. Qxc4 {[%clk 0:01:36.1]} 29... gxf6 {[%clk 0:00:19.4]} 30. Qxe6 {[%clk
0:01:34.7]} 30... Qd2 {[%clk 0:00:11.1]} 31. Re3 {[%clk 0:01:31.1]} 31... Qd1+
{[%clk 0:00:10.4]} 32. Kh2 {[%clk 0:01:30.3]} 32... Qd7 {[%clk 0:00:10.5]} 33.
Qf7 {[%clk 0:01:28.3]} 33... fxe5 {[%clk 0:00:09]} 34. Rg3 {[%clk 0:01:27.2]}
34... Bg5 {[%clk 0:00:08.5]} 35. Qg6 {[%clk 0:01:25.9]} 35... Qg7 {[%clk
0:00:07.9]} 36. Qe4 {[%clk 0:01:24.4]} 36... Bf4 {[%clk 0:00:07.5]} 37. Qb4
{[%clk 0:01:22.8]} 37... Bxg3+ {[%clk 0:00:07.6]} 38. fxg3 {[%clk 0:01:23.7]}
38... Rg8 {[%clk 0:00:06.7]} 39. g4 {[%clk 0:01:24.1]} 39... Qg5 {[%clk
0:00:06.8]} 40. Qxb7 {[%clk 0:01:23.4]} 40... Qf4+ {[%clk 0:00:07.1]} 41. Kg1
{[%clk 0:01:24]} 41... Rd8 {[%clk 0:00:07.4]} 42. Qb3 {[%clk 0:01:23.9]} 42...
Rc8 {[%clk 0:00:06.6]} 43. g3 {[%clk 0:01:23.1]} 43... Rc1+ {[%clk 0:00:06.6]}
44. Kg2 {[%clk 0:01:23.8]} 44... Qd2+ {[%clk 0:00:07.1]} 45. Kf3 {[%clk
0:01:24.3]} 45... Rc3+ {[%clk 0:00:07.9]} 0-1

[Event "Early-Titled-Tuesday-Blitz-January-30-2024"]
[Site "Chess.com"]
[Date "2024.01.30"]
[Round "1"]
[White "GMT4114"]
[Black "biostatistician"]
[Result "0-1"]
[WhiteElo "1923"]
[BlackElo "2556"]
[TimeControl "180+1"]
[EndTime "8:06:39 PST"]
[Termination "biostatistician won by checkmate"]

1. e4 {[%clk 0:03:00.9]} 1... e5 {[%clk 0:02:58.1]} 2. Bc4 {[%clk 0:02:59.8]}
2... Nf6 {[%clk 0:02:57.9]} 3. d3 {[%clk 0:03:00.2]} 3... Nc6 {[%clk 0:02:57.2]}
4. Nc3 {[%clk 0:03:00.5]} 4... Bc5 {[%clk 0:02:57.2]} 5. f4 {[%clk 0:02:59.7]}
5... d6 {[%clk 0:02:57.5]} 6. Nf3 {[%clk 0:02:59.8]} 6... Be6 {[%clk 0:02:57.5]}
7. Bb5 {[%clk 0:02:57.8]} 7... Bd7 {[%clk 0:02:53.1]} 8. f5 {[%clk 0:02:57.5]}
8... h6 {[%clk 0:02:51.1]} 9. Bc4 {[%clk 0:02:50.1]} 9... Na5 {[%clk 0:02:48.4]}
10. Bd5 {[%clk 0:02:38.8]} 10... c6 {[%clk 0:02:44.5]} 11. Bb3 {[%clk
0:02:38.3]} 11... Nxb3 {[%clk 0:02:40.3]} 12. axb3 {[%clk 0:02:39.2]} 12... Qe7
{[%clk 0:02:33]} 13. Qe2 {[%clk 0:02:39.4]} 13... O-O {[%clk 0:02:05.2]} 14. Na4
{[%clk 0:02:36.5]} 14... Bb4+ {[%clk 0:02:04.8]} 15. c3 {[%clk 0:02:29]} 15...
Ba5 {[%clk 0:02:05]} 16. b4 {[%clk 0:02:29]} 16... Bc7 {[%clk 0:02:04.2]} 17. c4
{[%clk 0:02:21.6]} 17... d5 {[%clk 0:02:02.1]} 18. Bd2 {[%clk 0:02:13.4]} 18...
Rfe8 {[%clk 0:01:19.7]} 19. g4 {[%clk 0:02:12]} 19... dxe4 {[%clk 0:01:07]} 20.
dxe4 {[%clk 0:02:09]} 20... b5 {[%clk 0:01:07.4]} 21. Nc5 {[%clk 0:01:48.8]}
21... Bb6 {[%clk 0:01:06.1]} 22. g5 {[%clk 0:01:28.2]} 22... hxg5 {[%clk
0:01:06]} 23. Bxg5 {[%clk 0:01:27.8]} 23... Bxc5 {[%clk 0:01:04.1]} 24. bxc5
{[%clk 0:01:27.6]} 24... Qxc5 {[%clk 0:01:05]} 25. Bxf6 {[%clk 0:00:57.2]} 25...
gxf6 {[%clk 0:01:04.8]} 26. Qg2+ {[%clk 0:00:57.5]} 26... Kf8 {[%clk 0:01:04.3]}
27. Rg1 {[%clk 0:00:57.7]} 27... Qe3+ {[%clk 0:01:01.7]} 28. Kf1 {[%clk
0:00:48.4]} 28... Qxe4 {[%clk 0:00:53.5]} 29. b3 {[%clk 0:00:18.4]} 29... Bxf5
{[%clk 0:00:50.7]} 30. Rd1 {[%clk 0:00:15.7]} 30... Rad8 {[%clk 0:00:44.4]} 31.
Qg7+ {[%clk 0:00:10.5]} 31... Ke7 {[%clk 0:00:44.3]} 32. Re1 {[%clk 0:00:10.7]}
32... Qxf3# {[%clk 0:00:43.2]} 0-1

[Event "Early-Titled-Tuesday-Blitz-January-30-2024"]
[Site "Chess.com"]
[Date "2024.01.30"]
[Round "1"]
[White "Durarbayli"]
[Black "Zarinur"]
[Result "1-0"]
[WhiteElo "2911"]
[BlackElo "2502"]
[TimeControl "180+1"]
[EndTime "8:06:41 PST"]
[Termination "Durarbayli won by resignation"]

1. c4 {[%clk 0:03:00.9]} 1... e5 {[%clk 0:02:23.7]} 2. g3 {[%clk 0:02:59]} 2...
c6 {[%clk 0:02:21.7]} 3. Nf3 {[%clk 0:02:56.3]} 3... e4 {[%clk 0:02:20.5]} 4.
Nd4 {[%clk 0:02:56.3]} 4... d5 {[%clk 0:02:15.2]} 5. cxd5 {[%clk 0:02:55.8]}
5... cxd5 {[%clk 0:02:12.4]} 6. Nc3 {[%clk 0:02:51.2]} 6... Nf6 {[%clk
0:02:07.7]} 7. Bg2 {[%clk 0:02:42.9]} 7... Nc6 {[%clk 0:01:56.8]} 8. Nxc6 {[%clk
0:02:42.5]} 8... bxc6 {[%clk 0:01:57.7]} 9. O-O {[%clk 0:02:39.8]} 9... Be7
{[%clk 0:01:52.7]} 10. d3 {[%clk 0:02:40.2]} 10... exd3 {[%clk 0:01:51.8]} 11.
Qxd3 {[%clk 0:02:41.1]} 11... O-O {[%clk 0:01:49.2]} 12. Be3 {[%clk 0:02:36.8]}
12... a5 {[%clk 0:01:46.5]} 13. Rac1 {[%clk 0:02:27.3]} 13... Ba6 {[%clk
0:01:45]} 14. Qd2 {[%clk 0:02:27.7]} 14... Rb8 {[%clk 0:01:32.1]} 15. Rfd1
{[%clk 0:02:11.9]} 15... Rb4 {[%clk 0:01:18.9]} 16. a3 {[%clk 0:02:03.2]} 16...
Rb3 {[%clk 0:01:08.9]} 17. Na4 {[%clk 0:02:03.2]} 17... Bc4 {[%clk 0:00:45]} 18.
Bc5 {[%clk 0:01:56]} 18... Re8 {[%clk 0:00:39.2]} 19. e3 {[%clk 0:01:07.2]}
19... Qb8 {[%clk 0:00:23.5]} 20. Bxe7 {[%clk 0:01:03.7]} 20... Rxe7 {[%clk
0:00:23]} 21. Rc2 {[%clk 0:00:41.7]} 21... Qa7 {[%clk 0:00:09.4]} 22. Qd4 {[%clk
0:00:35.2]} 22... Qxd4 {[%clk 0:00:08.5]} 23. Rxd4 {[%clk 0:00:36.1]} 23... Reb7
{[%clk 0:00:07.2]} 24. Rcxc4 {[%clk 0:00:35.2]} 24... Rxb2 {[%clk 0:00:02.5]}
25. Nxb2 {[%clk 0:00:34.3]} 25... Rxb2 {[%clk 0:00:03.4]} 26. Rxc6 {[%clk
0:00:33.4]} 1-0

[Event "Early-Titled-Tuesday-Blitz-January-30-2024"]
[Site "Chess.com"]
[Date "2024.01.30"]
[Round "1"]
[White "GMKrikor"]
[Black "korkmaz16"]
[Result "1-0"]
[WhiteElo "2800"]
[BlackElo "2448"]
[TimeControl "180+1"]
[EndTime "8:06:41 PST"]
[Termination "GMKrikor won by resignation"]

1. Nf3 {[%clk 0:03:00.9]} 1... d5 {[%clk 0:02:55]} 2. c4 {[%clk 0:03:00.6]} 2...
c6 {[%clk 0:02:54.6]} 3. d4 {[%clk 0:02:58.1]} 3... Nf6 {[%clk 0:02:54.2]} 4.
Nc3 {[%clk 0:02:56.7]} 4... e6 {[%clk 0:02:52.5]} 5. cxd5 {[%clk 0:02:56.4]}
5... exd5 {[%clk 0:02:51.4]} 6. Bf4 {[%clk 0:02:56.7]} 6... Bd6 {[%clk 0:02:50]}
7. Bxd6 {[%clk 0:02:48.2]} 7... Qxd6 {[%clk 0:02:49.5]} 8. e3 {[%clk 0:02:49.1]}
8... O-O {[%clk 0:02:47.3]} 9. Qb3 {[%clk 0:02:48.7]} 9... Nbd7 {[%clk
0:02:37.1]} 10. Bd3 {[%clk 0:02:48.6]} 10... Re8 {[%clk 0:02:33.8]} 11. O-O
{[%clk 0:02:48.7]} 11... b6 {[%clk 0:02:33.9]} 12. Rac1 {[%clk 0:02:47.8]} 12...
Bb7 {[%clk 0:02:33.5]} 13. h3 {[%clk 0:02:46.3]} 13... Rac8 {[%clk 0:02:28.5]}
14. Rfd1 {[%clk 0:02:45.9]} 14... Ne4 {[%clk 0:02:20.2]} 15. Qc2 {[%clk
0:02:42.1]} 15... f5 {[%clk 0:02:15.1]} 16. Ne2 {[%clk 0:02:34.2]} 16... c5
{[%clk 0:02:11.4]} 17. dxc5 {[%clk 0:02:26.7]} 17... Ndxc5 {[%clk 0:02:08]} 18.
Qb1 {[%clk 0:02:17.1]} 18... Qe7 {[%clk 0:01:59.3]} 19. Rf1 {[%clk 0:01:44]}
19... g6 {[%clk 0:01:46.1]} 20. Rcd1 {[%clk 0:01:42.6]} 20... Ng5 {[%clk
0:01:30.9]} 21. Nfd4 {[%clk 0:01:20.7]} 21... a6 {[%clk 0:01:19.5]} 22. Nf4
{[%clk 0:01:18.6]} 22... Nge6 {[%clk 0:01:16.3]} 23. Ndxe6 {[%clk 0:00:55.9]}
23... Nxe6 {[%clk 0:01:15.6]} 24. Nxe6 {[%clk 0:00:56.7]} 24... Qxe6 {[%clk
0:01:15.7]} 25. Bc2 {[%clk 0:00:57.6]} 25... f4 {[%clk 0:01:03.4]} 26. exf4
{[%clk 0:00:56]} 26... Kg7 {[%clk 0:00:53.7]} 27. Bb3 {[%clk 0:00:46.9]} 27...
Qf6 {[%clk 0:00:49]} 28. Bxd5 {[%clk 0:00:44.5]} 28... Bxd5 {[%clk 0:00:47.4]}
29. Rxd5 {[%clk 0:00:45.4]} 29... Rcd8 {[%clk 0:00:47.9]} 30. Rxd8 {[%clk
0:00:40]} 30... Rxd8 {[%clk 0:00:47.9]} 31. Qc1 {[%clk 0:00:39.3]} 31... Qd4
{[%clk 0:00:44.8]} 32. g3 {[%clk 0:00:38]} 32... Rd7 {[%clk 0:00:43.1]} 33. h4
{[%clk 0:00:38.2]} 33... Kh6 {[%clk 0:00:42.6]} 34. f5+ {[%clk 0:00:37.4]} 34...
Kg7 {[%clk 0:00:41.7]} 35. fxg6 {[%clk 0:00:37.8]} 35... hxg6 {[%clk 0:00:42.6]}
36. Re1 {[%clk 0:00:36.9]} 36... Kh7 {[%clk 0:00:39]} 37. Qc2 {[%clk 0:00:33.7]}
37... Rf7 {[%clk 0:00:37.3]} 38. h5 {[%clk 0:00:33.1]} 38... Qf6 {[%clk
0:00:36.6]} 39. Qxg6+ {[%clk 0:00:32.7]} 39... Qxg6 {[%clk 0:00:37.5]} 40. hxg6+
{[%clk 0:00:33.5]} 40... Kxg6 {[%clk 0:00:37.8]} 41. Re6+ {[%clk 0:00:34.2]}
41... Rf6 {[%clk 0:00:38.5]} 42. Rxf6+ {[%clk 0:00:34.7]} 1-0

[Event "Early-Titled-Tuesday-Blitz-January-30-2024"]
[Site "Chess.com"]
[Date "2024.01.30"]
[Round "1"]
[White "cristiano78"]
[Black "YouJustFoundYourGodfather"]
[Result "1-0"]
[WhiteElo "2269"]
[BlackElo "2592"]
[TimeControl "180+1"]
[EndTime "8:06:41 PST"]
[Termination "cristiano78 won by resignation"]

1. d4 {[%clk 0:02:59.9]} 1... e6 {[%clk 0:02:50.9]} 2. c4 {[%clk 0:02:58.7]}
2... f5 {[%clk 0:02:50.3]} 3. Nc3 {[%clk 0:02:58.5]} 3... Nf6 {[%clk 0:02:48.7]}
4. Nf3 {[%clk 0:02:59.2]} 4... Bb4 {[%clk 0:02:47.9]} 5. Bd2 {[%clk 0:02:58.3]}
5... O-O {[%clk 0:02:47.6]} 6. g3 {[%clk 0:02:58.1]} 6... b6 {[%clk 0:02:47.4]}
7. Bg2 {[%clk 0:02:58]} 7... Bb7 {[%clk 0:02:47.9]} 8. O-O {[%clk 0:02:58.1]}
8... d6 {[%clk 0:02:32.1]} 9. a3 {[%clk 0:02:57.6]} 9... Bxc3 {[%clk 0:02:31.8]}
10. Bxc3 {[%clk 0:02:57.9]} 10... Nbd7 {[%clk 0:02:30.8]} 11. d5 {[%clk
0:02:49.3]} 11... Nc5 {[%clk 0:01:51.4]} 12. dxe6 {[%clk 0:02:39.5]} 12... Nxe6
{[%clk 0:00:42.4]} 13. Nd4 {[%clk 0:02:10.4]} 13... Nxd4 {[%clk 0:00:20]} 14.
Bxb7 {[%clk 0:02:07.9]} 14... Rb8 {[%clk 0:00:20.6]} 15. Bxd4 {[%clk 0:02:06]}
15... Rxb7 {[%clk 0:00:20.3]} 16. Bxf6 {[%clk 0:02:05.9]} 16... Qc8 {[%clk
0:00:11.8]} 17. Bc3 {[%clk 0:02:03.4]} 17... c6 {[%clk 0:00:09.9]} 18. Qxd6
{[%clk 0:02:00.9]} 18... Rd7 {[%clk 0:00:09.1]} 19. Qe6+ {[%clk 0:02:00.4]}
19... Kh8 {[%clk 0:00:09.5]} 20. Qe5 {[%clk 0:01:47.1]} 20... c5 {[%clk
0:00:05.2]} 21. Rfd1 {[%clk 0:01:45.8]} 21... Re8 {[%clk 0:00:05.1]} 22. Qf4
{[%clk 0:01:34.2]} 22... Rxe2 {[%clk 0:00:05.5]} 23. Qg5 {[%clk 0:01:23.8]}
23... Ree7 {[%clk 0:00:03.1]} 24. Rxd7 {[%clk 0:01:21.9]} 24... Qxd7 {[%clk
0:00:01.9]} 25. h4 {[%clk 0:01:16.6]} 25... Kg8 {[%clk 0:00:01.6]} 26. h5 {[%clk
0:01:16]} 26... h6 {[%clk 0:00:02.5]} 27. Qf4 {[%clk 0:01:14.3]} 27... Qe6
{[%clk 0:00:02.4]} 28. Re1 {[%clk 0:01:12]} 28... Qf7 {[%clk 0:00:02.6]} 29.
Rxe7 {[%clk 0:01:11.6]} 29... Qxe7 {[%clk 0:00:03.5]} 30. Qxf5 {[%clk
0:01:10.3]} 30... Qe2 {[%clk 0:00:04.1]} 31. Qd5+ {[%clk 0:01:04.7]} 31... Kh7
{[%clk 0:00:03.7]} 32. Qf5+ {[%clk 0:01:03.9]} 32... Kg8 {[%clk 0:00:04.4]} 33.
Qg6 {[%clk 0:01:04.1]} 33... Qd1+ {[%clk 0:00:02.5]} 34. Kg2 {[%clk 0:01:03.4]}
34... Qd7 {[%clk 0:00:03.4]} 35. Qe4 {[%clk 0:00:59.6]} 35... Qf7 {[%clk
0:00:02.7]} 36. Qd5 {[%clk 0:00:59.2]} 1-0